fUSD/lending_fUSD_20260115
["ID","MTS","AMOUNT","RATE_DAILY","PERIOD"]
[402006306,1768456291857,-515.93,0.00041643,30]
[402006307,1768456291867,-1625.58,0.00041643,30]
[402006308,1768456291877,-500.0,0.00041643,30]
[402006309,1768456291887,-500.0,0.00041643,30]
[402006310,1768456291896,-1031.64,0.00041643,30]
[402006311,1768456291906,-1546.57,0.00041643,30]
[402006312,1768456291915,-500.0,0.00041643,30]
[402006313,1768456291925,-500.0,0.00041643,30]
[402006314,1768456291935,-898.37,0.00041643,30]
[402006315,1768456291945,-731.92,0.00041643,30]
[402006316,1768456291955,-611.18,0.00041643,30]
[402006317,1768456291964,-500.0,0.00041643,30]
[402006318,1768456291973,-500.0,0.00041643,30]
[402006319,1768456291983,-500.0,0.00041643,30]
[402006320,1768456291992,-500.0,0.00041643,30]
[402006321,1768456292001,-830.99,0.00041643,30]
[402006322,1768456292011,-500.0,0.00041643,30]
[402006323,1768456292020,-500.0,0.00041643,30]
[402006324,1768456292030,-1327.4,0.00041643,30]
[402006325,1768456292039,-1352.98,0.00041643,30]
[402006326,1768456292049,-356.09219821,0.00041643,30]
[402006327,1768456292058,-1623.62,0.00041643,30]
[402006328,1768456292068,-500.0,0.00041643,30]
[402006329,1768456292078,-500.0,0.00041643,30]
[402006330,1768456292088,-500.0,0.00041643,30]
[402006331,1768456292097,-1474.95,0.00041643,30]
[402006332,1768456292107,-1126.83,0.00041643,30]
[402006333,1768456292117,-838.95,0.00041643,30]
[402006334,1768456292127,-625.63,0.00041643,30]
[402006335,1768456292137,-500.0,0.00041643,30]
[402006336,1768456292147,-3417.33,0.00041643,30]
[402006337,1768456292160,-198.3345011,0.00041643,30]
[402006338,1768456292173,-500.0,0.00041643,30]
[402006339,1768456292184,-737.76,0.00041643,30]
[402006340,1768456292195,-500.0,0.00041643,30]
[402006341,1768456292204,-500.0,0.00041643,30]
[402006342,1768456292215,-1849.62,0.00041643,30]
[402006343,1768456292225,-500.0,0.00041643,30]
[402006344,1768456292237,-910.66,0.00041643,30]
[402006345,1768456292247,-500.0,0.00041643,30]
[402006346,1768456292256,-1081.92,0.00041643,30]
[402006347,1768456292267,-879.87,0.00041643,30]
[402006348,1768456292276,-500.0,0.00041643,30]
[402006349,1768456292286,-500.0,0.00041643,30]
[402006350,1768456292296,-500.0,0.00041643,30]
[402006351,1768456292305,-684.98,0.00041643,30]
[402006352,1768456292315,-500.0,0.00041643,30]
[402006353,1768456292325,-248.91399892,0.00041643,30]
[402006354,1768456292538,-1058.06,0.00041643,30]
[402006355,1768456292553,-1000.0,0.00041643,30]
[402006356,1768456292563,-500.0,0.00041643,30]
[402006357,1768456292572,-1086.57307071,0.00041643,30]
[402006358,1768456292582,-1873.12,0.00041643,30]
[402006359,1768456292591,-500.0,0.00041643,30]
[402006360,1768456292601,-1840.97,0.00041643,30]
[402006361,1768456292611,-500.0,0.00041643,30]
[402006362,1768456292620,-500.0,0.00041643,30]
[402006363,1768456292630,-1107.51,0.00041643,30]
[402006364,1768456292639,-500.0,0.00041643,30]
[402006365,1768456292649,-500.0,0.00041643,30]
[402006366,1768456292658,-500.0,0.00041643,30]
[402006367,1768456292668,-500.0,0.00041643,30]
[402006368,1768456292678,-1052.64,0.00041643,30]
[402006369,1768456292687,-506.97355564,0.00041643,30]
[402006370,1768456292696,-752.36,0.00041643,30]
[402006371,1768456292706,-500.0,0.00041643,30]
[402006372,1768456292716,-500.0,0.00041643,30]
[402006373,1768456292725,-500.0,0.00041643,30]
[402006374,1768456292734,-1837.54,0.00041643,30]
[402006375,1768456292744,-500.0,0.00041643,30]
[402006376,1768456292753,-483.18081789,0.00041643,30]
[402006377,1768456292763,-1368.1,0.00041643,30]
[402006378,1768456292773,-500.0,0.00041643,30]
[402006379,1768456292782,-1274.16,0.00041643,30]
[402006380,1768456292792,-658.15,0.00041643,30]
[402006381,1768456292801,-602.98,0.00041643,30]
[402006382,1768456292811,-765.62,0.00041643,30]
[402006383,1768456292820,-579.51,0.00041643,30]
[402006384,1768456292830,-858.81,0.00041643,30]
[402006385,1768456292840,-1169.99,0.00041643,30]
[402006386,1768456292848,-2319.02,0.00041643,30]
[402006387,1768456292858,-1075.89,0.00041643,30]
[402006388,1768456292867,-500.0,0.00041643,30]
[402006389,1768456292876,-500.0,0.00041643,30]
[402006390,1768456292887,-500.0,0.00041643,30]
[402006391,1768456292897,-500.78,0.00041643,30]
[402006392,1768456292906,-300.0,0.00041643,2]
[402006393,1768456292915,-1035.17,0.00041643,30]
[402006394,1768456292925,-621.4,0.00041643,30]
[402006395,1768456292934,-788.9,0.00041643,30]
[402006396,1768456292943,-500.0,0.00041643,30]
[402006397,1768456292952,-870.22,0.00041643,30]
[402006398,1768456292961,-1632.51,0.00041643,30]
[402006399,1768456292971,-990.93,0.00041643,30]
[402006400,1768456292980,-500.0,0.00041643,30]
[402006401,1768456292990,-1930.57,0.00041643,30]
[402006402,1768456292999,-1583.0,0.00041643,30]
[402006403,1768456293009,-983.91,0.00041643,30]
[402006404,1768456293020,-531.58,0.00041643,30]
[402006405,1768456293029,-500.0,0.00041643,30]
[402006406,1768456293040,-500.0,0.00041643,30]
[402006407,1768456293049,-1943.14,0.00041643,30]
[402006408,1768456293059,-500.0,0.00041643,16]
[402006409,1768456293068,-500.0,0.00041643,30]
[402006410,1768456293077,-354.58200718,0.00041643,30]
[402006411,1768456293087,-500.0,0.00041643,30]
[402006412,1768456293096,-862.08,0.00041643,30]
[402006413,1768456293105,-624.03,0.00041643,30]
[402006414,1768456293114,-500.0,0.00041643,30]
[402006415,1768456293123,-1404.84,0.00041643,30]
[402006416,1768456293133,-500.0,0.00041643,30]
[402006417,1768456293142,-1449.27,0.00041643,30]
[402006418,1768456293152,-2295.17,0.00041643,30]
[402006419,1768456293163,-500.0,0.00041643,30]
[402006420,1768456293172,-595.77,0.00041643,30]
[402006421,1768456293181,-500.0,0.00041643,30]
[402006422,1768456293191,-500.0,0.00041643,30]
[402006423,1768456293202,-732.39,0.00041643,30]
[402006424,1768456293211,-1203.46,0.00041643,30]
[402006425,1768456293221,-1317.45,0.00041643,30]
[402006426,1768456293231,-587.79140436,0.00041643,30]
[402006427,1768456293242,-500.0,0.00041643,30]
[402006428,1768456293251,-1797.52,0.00041643,30]
[402006429,1768456293261,-3003.5,0.00041643,30]
[402006430,1768456293270,-500.0,0.00041643,30]
[402006431,1768456293279,-500.0,0.00041643,30]
[402006432,1768456293290,-500.0,0.00041643,30]
[402006433,1768456293300,-500.0,0.00041643,30]
[402006434,1768456293310,-1488.87,0.00041643,30]
[402006435,1768456293319,-500.0,0.00041643,30]
[402006436,1768456293328,-500.0,0.00041643,30]
[402006437,1768456293338,-598.94,0.00041643,30]
[402006438,1768456293347,-807.65,0.00041643,30]
[402006439,1768456293356,-500.0,0.00041643,30]
[402006440,1768456293366,-500.0,0.00041643,30]
[402006441,1768456293375,-500.0,0.00041643,30]
[402006442,1768456293385,-500.0,0.00041643,30]
[402006443,1768456293395,-500.0,0.00041643,30]
[402006444,1768456293405,-500.0,0.00041643,30]
[402006445,1768456293414,-500.0,0.00041643,30]
[402006446,1768456293424,-1231.59,0.00041643,30]
[402006447,1768456293433,-500.0,0.00041643,30]
[402006448,1768456293443,-1553.63,0.00041643,30]
[402006449,1768456293453,-694.19,0.00041643,30]
[402006450,1768456293462,-573.6,0.00041643,30]
[402006451,1768456293472,-500.0,0.00041643,30]
[402006452,1768456293482,-500.0,0.00041643,30]
[402006453,1768456293491,-1448.11,0.00041643,30]
[402006454,1768456293500,-500.0,0.00041643,30]
[402006455,1768456293510,-500.0,0.00041643,30]
[402006456,1768456293520,-1173.28,0.00041643,30]
[402006457,1768456293529,-500.0,0.00041643,30]
[402006458,1768456293539,-500.0,0.00041643,30]
[402006459,1768456293548,-1760.05,0.00041643,30]
[402006460,1768456293557,-1093.35,0.00041643,30]
[402006461,1768456293566,-500.0,0.00041643,30]
[402006462,1768456293576,-500.0,0.00041643,30]
[402006463,1768456293585,-500.0,0.00041643,30]
[402006464,1768456293595,-1138.35,0.00041643,30]
[402006465,1768456293604,-2167.36,0.00041643,30]
[402006466,1768456293614,-500.0,0.00041643,30]
[402006467,1768456293623,-1025.05,0.00041643,30]
[402006468,1768456293633,-500.0,0.00041643,30]
[402006469,1768456293643,-500.0,0.00041643,30]
[402006470,1768456293652,-580.17,0.00041643,30]
[402006471,1768456293662,-500.0,0.00041643,30]
[402006472,1768456293672,-500.0,0.00041643,30]
[402006473,1768456293681,-500.0,0.00041643,30]
[402006474,1768456293691,-723.77,0.00041643,30]
[402006475,1768456293700,-893.87,0.00041643,30]
[402006476,1768456293709,-590.63,0.00041643,30]
[402006477,1768456293719,-500.0,0.00041643,30]
[402006478,1768456293728,-500.0,0.00041643,30]
[402006479,1768456293738,-529.54,0.00041643,30]
[402006480,1768456293748,-1383.42,0.00041643,30]
[402006481,1768456293758,-500.0,0.00041643,30]
[402006482,1768456293768,-922.96,0.00041643,30]
[402006483,1768456293778,-500.0,0.00041643,30]
[402006484,1768456293789,-1406.87,0.00041643,30]
[402006485,1768456293797,-500.0,0.00041643,30]
[402006486,1768456293807,-500.0,0.00041643,30]
[402006487,1768456293816,-500.0,0.00041643,30]
[402006488,1768456293826,-1124.85,0.00041643,30]
[402006489,1768456293836,-614.03,0.00041643,30]
[402006490,1768456293846,-850.47,0.00041643,30]
[402006491,1768456293855,-840.82,0.00041643,30]
[402006492,1768456293865,-500.0,0.00041643,30]
[402006493,1768456293874,-795.79,0.00041643,30]
[402006494,1768456293885,-500.0,0.00041643,30]
[402006495,1768456293895,-500.0,0.00041643,30]
[402006496,1768456293906,-1197.5,0.00041643,30]
[402006497,1768456293916,-1879.94,0.00041643,30]
[402006498,1768456293925,-1126.11,0.00041643,30]
[402006499,1768456293935,-500.0,0.00041643,30]
[402006500,1768456293944,-1378.85,0.00041643,30]
[402006501,1768456293953,-630.98,0.00041643,30]
[402006502,1768456293963,-1239.97,0.00041643,30]
[402006503,1768456293972,-500.0,0.00041643,30]
[402006504,1768456293982,-500.0,0.00041643,30]
[402006505,1768456293991,-500.0,0.00041643,30]
[402006506,1768456294002,-515.01,0.00041643,30]
[402006507,1768456294011,-500.0,0.00041643,30]
[402006508,1768456294020,-3147.22,0.00041643,30]
[402006509,1768456294030,-500.0,0.00041643,30]
[402006510,1768456294039,-2422.32,0.00041643,30]
[402006511,1768456294049,-692.15,0.00041643,30]
[402006512,1768456294058,-597.12,0.00041643,30]
[402006513,1768456294068,-625.88,0.00041643,30]
[402006514,1768456294077,-550.39,0.00041643,30]
[402006515,1768456294086,-500.0,0.00041643,30]
[402006516,1768456294096,-1231.32,0.00041643,30]
[402006517,1768456294106,-500.0,0.00041643,30]
[402006518,1768456294115,-500.0,0.00041643,30]
[402006519,1768456294125,-1201.89,0.00041643,30]
[402006520,1768456294136,-350.12926859,0.00041643,30]
[402006521,1768456294146,-2824.64,0.00041643,30]
[402006522,1768456294156,-751.11,0.00041643,30]
[402006523,1768456294169,-589.34,0.00041643,30]
[402006524,1768456294178,-500.0,0.00041643,30]
[402006525,1768456294187,-558.21,0.00041643,30]
[402006526,1768456294196,-819.83,0.00041643,30]
[402006527,1768456294206,-500.0,0.00041643,30]
[402006528,1768456294216,-500.0,0.00041643,14]
[402006529,1768456294225,-1458.11,0.00041643,30]
[402006530,1768456294238,-783.08,0.00041643,30]
[402006531,1768456294247,-1693.52,0.00041643,30]
[402006532,1768456294256,-1392.94,0.00041643,30]
[402006533,1768456294265,-1145.89,0.00041643,2]
[402006534,1768456294275,-771.96,0.00041643,30]
[402006535,1768456294284,-728.13,0.00041643,30]
[402006536,1768456294293,-645.5,0.00041643,30]
[402006537,1768456294303,-500.0,0.00041643,30]
[402006538,1768456294312,-1358.25,0.00041643,30]
[402006539,1768456294321,-1951.01,0.00041643,30]
[402006540,1768456294330,-500.0,0.00041643,30]
[402006541,1768456294339,-500.0,0.00041643,30]
[402006542,1768456294348,-500.0,0.00041643,30]
[402006543,1768456294358,-764.43,0.00041643,30]
[402006544,1768456294367,-500.0,0.00041643,30]
[402006545,1768456294376,-793.06,0.00041643,30]
[402006546,1768456294387,-652.13,0.00041643,30]
[402006547,1768456294396,-1362.49,0.00041643,30]
[402006548,1768456294406,-500.0,0.00041643,30]
[402006549,1768456294415,-500.0,0.00041643,30]
[402006550,1768456294424,-500.0,0.00041643,30]
[402006551,1768456294434,-500.0,0.00041643,30]
[402006552,1768456294444,-874.92,0.00041643,30]
[402006553,1768456294453,-500.0,0.00041643,30]
[402006554,1768456294463,-1307.13,0.00041643,30]
[402006555,1768456294472,-500.0,0.00041643,30]
[402006556,1768456294481,-500.0,0.00041643,30]
[402006557,1768456294491,-500.0,0.00041643,30]
[402006558,1768456294500,-500.0,0.00041643,30]
[402006559,1768456294510,-500.0,0.00041643,30]
[402006560,1768456294520,-500.0,0.00041643,30]
[402006561,1768456294530,-870.73,0.00041643,30]
[402006562,1768456294539,-1296.01,0.00041643,30]
[402006563,1768456294551,-2901.2,0.00041643,30]
[402006564,1768456294560,-420.25177784,0.00041643,30]
[402006565,1768456294570,-1510.63,0.00041643,30]
[402006566,1768456294579,-547.16,0.00041643,30]
[402006567,1768456294589,-675.68,0.00041643,30]
[402006568,1768456294599,-2672.7,0.00041643,30]
[402006569,1768456294609,-500.0,0.00041643,30]
[402006570,1768456294618,-500.0,0.00041643,30]
[402006571,1768456294627,-747.8,0.00041643,30]
[402006572,1768456294636,-500.0,0.00041643,30]
[402006573,1768456294646,-835.52,0.00041643,30]
[402006574,1768456294655,-500.0,0.00041643,30]
[402006575,1768456294665,-2690.14,0.00041643,30]
[402006576,1768456294674,-1978.17,0.00041643,30]
[402006577,1768456294684,-500.0,0.00041643,30]
[402006578,1768456294693,-1312.11,0.00041643,30]
[402006579,1768456294703,-557.29,0.00041643,30]
[402006580,1768456294712,-1022.6,0.00041643,30]
[402006581,1768456294721,-1337.57,0.00041643,30]
[402006582,1768456294731,-1746.26,0.00041643,30]
[402006583,1768456294739,-539.51,0.00041643,30]
[402006584,1768456294748,-3220.79,0.00041643,30]
[402006585,1768456294758,-1493.44,0.00041643,30]
[402006586,1768456294767,-500.0,0.00041643,30]
[402006587,1768456294777,-1507.88,0.00041643,30]
[402006588,1768456294787,-500.0,0.00041643,30]
[402006589,1768456294796,-500.0,0.00041643,30]
[402006590,1768456294805,-1289.78,0.00041643,30]
[402006591,1768456294892,-510.66,0.00041643,30]
[402006592,1768456294902,-517.72,0.00041643,30]
[402006593,1768456294911,-1839.33,0.00041643,30]
[402006594,1768456294920,-500.0,0.00041643,30]
[402006595,1768456294930,-500.0,0.00041643,30]
[402006596,1768456294939,-500.0,0.00041643,30]
[402006597,1768456294949,-626.68,0.00041643,30]
[402006598,1768456294958,-500.0,0.00041643,30]
[402006599,1768456294967,-547.18,0.00041643,30]
[402006600,1768456294977,-2050.85,0.00041643,30]
[402006601,1768456294986,-510.56,0.00041643,30]
[402006602,1768456294996,-1452.21,0.00041643,30]
[402006603,1768456295005,-500.0,0.00041643,30]
[402006604,1768456295014,-581.73,0.00041643,30]
[402006605,1768456295023,-500.0,0.00041643,30]
[402006606,1768456295032,-500.0,0.00041643,30]
[402006607,1768456295042,-500.0,0.00041643,30]
[402006608,1768456295051,-512.07,0.00041643,30]
[402006609,1768456295060,-2218.71,0.00041643,30]
[402006610,1768456295069,-500.0,0.00041643,30]
[402006611,1768456295079,-533.11,0.00041643,30]
[402006612,1768456295088,-500.0,0.00041643,30]
[402006613,1768456295097,-500.0,0.00041643,30]
[402006614,1768456295106,-500.0,0.00041643,30]
[402006615,1768456295116,-1103.71,0.00041643,30]
[402006616,1768456295125,-1873.11,0.00041643,30]
[402006617,1768456295134,-1187.6,0.00041643,30]
[402006618,1768456295143,-1986.74,0.00041643,30]
[402006619,1768456295153,-500.0,0.00041643,30]
[402006620,1768456295165,-826.89,0.00041643,30]
[402006621,1768456295175,-500.0,0.00041643,30]
[402006622,1768456295184,-500.0,0.00041643,30]
[402006623,1768456295194,-500.0,0.00041643,30]
[402006624,1768456295203,-500.0,0.00041643,30]
[402006625,1768456295214,-500.0,0.00041643,30]
[402006626,1768456295223,-882.92,0.00041643,30]
[402006627,1768456295232,-2561.19,0.00041643,30]
[402006628,1768456295241,-1506.3,0.00041643,30]
[402006629,1768456295250,-500.0,0.00041643,30]
[402006630,1768456295260,-500.0,0.00041643,30]
[402006631,1768456295269,-500.0,0.00041643,30]
[402006632,1768456295278,-668.38,0.00041643,30]
[402006633,1768456295287,-1252.91,0.00041643,30]
[402006634,1768456295296,-500.0,0.00041643,30]
[402006635,1768456295306,-679.9,0.00041643,30]
[402006636,1768456295315,-1294.07,0.00041643,30]
[402006637,1768456295324,-759.7,0.00041643,30]
[402006638,1768456295333,-924.88,0.00041643,30]
[402006639,1768456295342,-500.0,0.00041643,30]
[402006640,1768456295351,-500.0,0.00041643,30]
[402006641,1768456295360,-500.0,0.00041643,30]
[402006642,1768456295370,-500.0,0.00041643,30]
[402006643,1768456295379,-500.0,0.00041643,30]
[402006644,1768456295388,-500.0,0.00041643,30]
[402006645,1768456295398,-1638.25,0.00041643,30]
[402006646,1768456295408,-500.0,0.00041643,30]
[402006647,1768456295417,-910.75,0.00041643,30]
[402006648,1768456295426,-500.0,0.00041643,30]
[402006649,1768456295435,-1278.62,0.00041643,30]
[402006650,1768456295444,-1638.86,0.00041643,30]
[402006651,1768456295452,-500.0,0.00041643,30]
[402006652,1768456295462,-673.54,0.00041643,30]
[402006653,1768456295471,-500.0,0.00041643,30]
[402006654,1768456295480,-500.0,0.00041643,30]
[402006655,1768456295489,-500.0,0.00041643,30]
[402006656,1768456295497,-500.0,0.00041643,30]
[402006657,1768456295506,-500.0,0.00041643,30]
[402006658,1768456295515,-500.0,0.00041643,30]
[402006659,1768456295524,-500.0,0.00041643,30]
[402006660,1768456295534,-1463.35,0.00041643,30]
[402006661,1768456295543,-500.0,0.00041643,30]
[402006662,1768456295552,-1748.03,0.00041643,30]
[402006663,1768456295561,-778.16,0.00041643,30]
[402006664,1768456295570,-2170.39,0.00041643,30]
[402006665,1768456295579,-910.62,0.00041643,30]
[402006666,1768456295588,-500.0,0.00041643,30]
[402006667,1768456295597,-500.0,0.00041643,30]
[402006668,1768456295611,-1909.88,0.00041643,30]
[402006669,1768456295620,-1593.71,0.00041643,30]
[402006670,1768456295630,-2798.34,0.00041643,30]
[402006671,1768456295639,-500.0,0.00041643,30]
[402006672,1768456295648,-500.0,0.00041643,30]
[402006673,1768456295657,-174.74931426,0.00041643,30]
[402006674,1768456295666,-500.0,0.00041643,30]
[402006675,1768456295675,-523.52,0.00041643,30]
[402006676,1768456295684,-300.0,0.00041643,2]
[402006677,1768456295693,-500.0,0.00041643,30]
[402006678,1768456295702,-500.0,0.00041643,30]
[402006679,1768456295711,-764.51,0.00041643,30]
[402006680,1768456295720,-500.0,0.00041643,30]
[402006681,1768456295729,-500.0,0.00041643,30]
[402006682,1768456295738,-500.0,0.00041643,30]
[402006683,1768456295747,-500.0,0.00041643,30]
[402006684,1768456295756,-500.0,0.00041643,30]
[402006685,1768456295766,-548.84,0.00041643,30]
[402006686,1768456295775,-1135.91,0.00041643,30]
[402006687,1768456295784,-538.03,0.00041643,30]
[402006688,1768456295793,-500.0,0.00041643,30]
[402006689,1768456295802,-363.64,0.00041643,30]
[402006690,1768456295812,-845.61,0.00041643,30]
[402006691,1768456295821,-500.0,0.00041643,30]
[402006692,1768456295830,-1817.75,0.00041643,30]
[402006693,1768456295839,-500.0,0.00041643,30]
[402006694,1768456295848,-977.99,0.00041643,30]
[402006695,1768456295857,-1758.16,0.00041643,30]
[402006696,1768456295866,-634.83,0.00041643,30]
[402006697,1768456295876,-815.54,0.00041643,30]
[402006698,1768456295886,-500.0,0.00041643,30]
[402006699,1768456295895,-500.0,0.00041643,30]
[402006700,1768456295904,-500.0,0.00041643,30]
[402006701,1768456295914,-500.0,0.00041643,30]
[402006702,1768456295923,-500.0,0.00041643,30]
[402006703,1768456295933,-539.5,0.00041643,30]
[402006704,1768456295942,-500.0,0.00041643,30]
[402006705,1768456295951,-642.78,0.00041643,30]
[402006706,1768456295961,-1744.44,0.00041643,30]
[402006707,1768456295971,-554.79,0.00041643,30]
[402006708,1768456295984,-1733.16,0.00041643,30]
[402006709,1768456295993,-500.0,0.00041643,30]
[402006710,1768456296003,-2696.96,0.00041643,30]
[402006711,1768456296015,-500.0,0.00041643,30]
[402006712,1768456296025,-512.87,0.00041643,30]
[402006713,1768456296035,-2904.96,0.00041643,30]
[402006714,1768456296044,-500.0,0.00041643,30]
[402006715,1768456296054,-500.0,0.00041643,30]
[402006716,1768456296064,-500.0,0.00041643,30]
[402006717,1768456296074,-2444.5,0.00041643,30]
[402006718,1768456296083,-607.66,0.00041643,30]
[402006719,1768456296093,-1909.68,0.00041643,30]
[402006720,1768456296103,-500.0,0.00041643,30]
[402006721,1768456296113,-1560.32,0.00041643,30]
[402006722,1768456296122,-500.0,0.00041643,30]
[402006723,1768456296132,-500.0,0.00041643,30]
[402006724,1768456296142,-500.0,0.00041643,30]
[402006725,1768456296151,-500.0,0.00041643,30]
[402006726,1768456296162,-862.87,0.00041643,30]
[402006727,1768456296172,-500.0,0.00041643,30]
[402006728,1768456296181,-1583.24,0.00041643,30]
[402006729,1768456296194,-1117.85,0.00041643,30]
[402006730,1768456296204,-500.0,0.00041643,30]
[402006731,1768456296213,-158.92795896,0.00041643,2]
[402006732,1768456296223,-500.0,0.00041643,30]
[402006733,1768456296233,-500.0,0.00041643,30]
[402006734,1768456296243,-5720.75,0.00041643,30]
[402006735,1768456296253,-1414.83,0.00041643,30]
[402006736,1768456296263,-500.0,0.00041643,30]
[402006737,1768456296272,-540.99,0.00041643,30]
[402006738,1768456296282,-500.0,0.00041643,30]
[402006739,1768456296291,-438.23546739,0.00041643,2]
[402006740,1768456296301,-21490.02481878,0.00041643,4]
[402006741,1768456296310,-875.0,0.00041644,2]
[402006742,1768456296319,-2000.0,0.00041644,120]
[402006743,1768456296336,-445.17443,0.00041688,30]
[402006744,1768456296358,-875.0,0.00041699,2]
[402006745,1768456296370,-390.5,0.000417,120]
[402006746,1768456296380,-500.0,0.00041709,30]
[402006747,1768456296390,-151.19,0.00041742,120]
[402006748,1768456296401,-875.0,0.00041754,2]
[402006749,1768456296412,-2005.68908794,0.000418,90]
[402006750,1768456296423,-3464.28311266,0.000418,120]
[402006751,1768456296433,-1000.0,0.000418,120]
[402006752,1768456296444,-771.83,0.000418,14]
[402006753,1768456296453,-875.0,0.00041808,2]
[402006754,1768456296464,-2000.0,0.0004181,60]
[402006755,1768456296475,-3000.0,0.0004181,60]
[402006756,1768456296485,-600.0,0.0004181,60]
[402006757,1768456296495,-150.0,0.00041817,120]
[402006758,1768456296505,-151.19,0.00041842,120]
[402006759,1768456296514,-875.0,0.00041863,2]
[402006760,1768456296525,-445.17443,0.00041888,30]
[402006761,1768456296537,-2000.0,0.000419,60]
[402006762,1768456296547,-1574.0793356,0.000419,120]
[402006763,1768456296557,-1703.97589433,0.000419,120]
[402006764,1768456296567,-1703.97589419,0.000419,120]
[402006765,1768456296576,-1703.97589419,0.000419,120]
[402006766,1768456296588,-1703.97589419,0.000419,120]
[402006767,1768456296597,-1703.97589419,0.000419,120]
[402006768,1768456296607,-1703.97589419,0.000419,120]
[402006769,1768456296617,-1703.97589419,0.000419,120]
[402006770,1768456296627,-1703.97589419,0.000419,120]
[402006771,1768456296638,-1703.97589419,0.000419,120]
[402006772,1768456296647,-1703.97589419,0.000419,120]
[402006773,1768456296656,-1703.97589419,0.000419,120]
[402006774,1768456296667,-1703.97589419,0.000419,120]
[402006775,1768456296676,-1703.97589419,0.000419,120]
[402006776,1768456296687,-1703.97589419,0.000419,120]
[402006777,1768456296696,-1703.97589419,0.000419,120]
[402006778,1768456296706,-1703.97589419,0.000419,120]
[402006779,1768456296716,-1703.97589419,0.000419,120]
[402006780,1768456296726,-300.147881,0.00041917,30]
[402006781,1768456296736,-355.426866,0.00041917,30]
[402006782,1768456296745,-166.871004,0.00041917,30]
[402006783,1768456296755,-415.03741384,0.00041917,30]
[402006784,1768456296764,-500.0,0.00041917,30]
[402006785,1768456296773,-500.0,0.00041917,30]
[402006786,1768456296783,-500.0,0.00041917,30]
[402006787,1768456296792,-500.0,0.00041917,30]
[402006788,1768456296801,-500.0,0.00041917,30]
[402006789,1768456296811,-540.56625293,0.00041917,30]
[402006790,1768456296831,-285.62510239,0.00041917,30]
[402006791,1768456296841,-847.67,0.00041917,30]
[402006792,1768456296851,-703.15,0.00041917,30]
[402006793,1768456296860,-500.0,0.00041917,30]
[402006794,1768456296870,-500.0,0.00041917,30]
[402006795,1768456296879,-500.0,0.00041917,30]
[402006796,1768456296889,-556.0,0.00041917,30]
[402006797,1768456296901,-500.0,0.00041917,30]
[402006798,1768456296910,-653.27,0.00041917,30]
[402006799,1768456296919,-500.0,0.00041917,30]
[402006800,1768456296929,-500.0,0.00041917,30]
[402006801,1768456296938,-500.0,0.00041917,30]
[402006802,1768456296955,-500.0,0.00041917,30]
[402006803,1768456296964,-500.0,0.00041917,30]
[402006804,1768456296974,-889.5,0.00041917,30]
[402006805,1768456296984,-500.0,0.00041917,30]